Workbook

Sheet Mittelhilfstabelle
A2: Stunde | B2: Luftfeuchtigkeit | C2: Luftdruck | D2: Taupunkttemperatur | E2: Bewölkung | G2: Stunde | H2: Luftfeuchtigkeit | I2: Luftdruck | J2: Taupunkttemperatur | K2: Bewölkung
A3: 00 | B3: 84 | C3: 1024.5 | D3: 2.7 | E3: 8 | G3: 00 | H3: 93 | I3: 1028.7 | J3: 2.9 | K3: 8
A4: 01 | B4: 84 | C4: 1024.2 | D4: 2.8 | E4: 7 | G4: 01 | H4: 92 | I4: 1029 | J4: 2.4 | K4: 8
A5: 02 | B5: 81 | C5: 1024.1 | D5: 2.6 | E5: 7 | G5: 02 | H5: 93 | I5: 1029.2 | J5: 2.6 | K5: 8
A6: 03 | B6: 74 | C6: 1024.4 | D6: 1.3 | E6: 7 | G6: 03 | H6: 93 | I6: 1029.3 | J6: 2.9 | K6: 8
A7: 04 | B7: 72 | C7: 1023.9 | D7: 0.6 | E7: 7 | G7: 04 | H7: 93 | I7: 1028.9 | J7: 2.9 | K7: 8
A8: 05 | B8: 72 | C8: 1024.5 | D8: 0.2 | E8: 7 | G8: 05 | H8: 92 | I8: 1028.5 | J8: 2.7 | K8: 8
A9: 06 | B9: 80 | C9: 1024.6 | D9: 0.8 | E9: 8 | G9: 06 | H9: 93 | I9: 1028.6 | J9: 2.9 | K9: 8
A10: 07 | B10: 83 | C10: 1024.8 | D10: 1 | E10: 8 | G10: 07 | H10: 91 | I10: 1028.7 | J10: 2.7 | K10: 8
A11: 08 | B11: 81 | C11: 1025.1 | D11: 0.7 | E11: 8 | G11: 08 | H11: 92 | I11: 1028.9 | J11: 2.7 | K11: 8
A12: 09 | B12: 80 | C12: 1025.5 | D12: 0.9 | E12: 8 | G12: 09 | H12: 92 | I12: 1029.3 | J12: 2.8 | K12: 8
A13: 10 | B13: 86 | C13: 1025.6 | D13: 1.8 | E13: 8 | G13: 10 | H13: 92 | I13: 1029.4 | J13: 2.9 | K13: 8
A14: 11 | B14: 90 | C14: 1025.4 | D14: 2.5 | E14: 8 | G14: 11 | H14: 91 | I14: 1029.4 | J14: 3.1 | K14: 8
A15: 12 | B15: 89 | C15: 1025.2 | D15: 2.7 | E15: 8 | G15: 12 | H15: 90 | I15: 1029.1 | J15: 2.9 | K15: 8
A16: 13 | B16: 90 | C16: 1025.4 | D16: 2.9 | E16: 8 | G16: 13 | H16: 91 | I16: 1028.1 | J16: 3.1 | K16: 8
A17: 14 | B17: 90 | C17: 1025.6 | D17: 3.1 | E17: 8 | G17: 14 | H17: 91 | I17: 1027.5 | J17: 3.3 | K17: 8
A18: 15 | B18: 90 | C18: 1026 | D18: 3.1 | E18: 8 | G18: 15 | H18: 90 | I18: 1027.3 | J18: 3.2 | K18: 8
A19: 16 | B19: 91 | C19: 1026.6 | D19: 3.2 | E19: 8 | G19: 16 | H19: 88 | I19: 1027.3 | J19: 3.7 | K19: 7
A20: 17 | B20: 90 | C20: 1027 | D20: 3.1 | E20: 8 | G20: 17 | H20: 87 | I20: 1026.9 | J20: 3.1 | K20: 7
A21: 18 | B21: 90 | C21: 1027.2 | D21: 3.1 | E21: 8 | G21: 18 | H21: 85 | I21: 1026.1 | J21: 3 | K21: 7
A22: 19 | B22: 91 | C22: 1027.9 | D22: 2.8 | E22: 8 | G22: 19 | H22: 83 | I22: 1025.6 | J22: 3 | K22: 8
A23: 20 | B23: 90 | C23: 1028.3 | D23: 2.8 | E23: 8 | G23: 20 | H23: 82 | I23: 1025.8 | J23: 2.7 | K23: 8
A24: 21 | B24: 91 | C24: 1028.6 | D24: 2.9 | E24: 8 | G24: 21 | H24: 81 | I24: 1023.5 | J24: 1.8 | K24: 7
A25: 22 | B25: 92 | C25: 1028.9 | D25: 3 | E25: 8 | G25: 22 | H25: 81 | I25: 1022.6 | J25: 2 | K25: 8
A26: 23 | B26: 93 | C26: 1029 | D26: 3 | E26: 8 | G26: 23 | H26: 84 | I26: 1021.2 | J26: 2.3 | K26: 8
A27: Mittel | B27: =ROUND(AVERAGE(B3:B26),1) -> 85.6 | C27: =ROUND(AVERAGE(C3:C26),1) -> 1025.9 | D27: =AVERAGE(D3:D26) -> 2.233333333 | E27: =AVERAGE(E3:E26) -> 7.791666667 | G27: Mittel | H27: =ROUND(AVERAGE(H3:H26),1) -> 89.2 | I27: =ROUND(AVERAGE(I3:I26),1) -> 1027.5 | J27: =AVERAGE(J3:J26) -> 2.816666667 | K27: =ROUND(AVERAGE(K3:K26),1) -> 7.8
D29: 2018-12-28 | J29: 2018-12-29
A32: Stunde | B32: Luftfeuchtigkeit | C32: Luftdruck | D32: Taupunkttemperatur | E32: Bewölkung | G32: Stunde | H32: Luftfeuchtigkeit | I32: Luftdruck | J32: Taupunkttemperatur | K32: Bewölkung
A33: 00 | B33: 86 | C33: 1020.3 | D33: 2.5 | E33: 8 | G33: 00 | H33: 86 | I33: 1029 | J33: 2.7 | K33: 6
A34: 01 | B34: 86 | C34: 1019.5 | D34: 2.9 | E34: 8 | G34: 01 | H34: 88 | I34: 1029.1 | J34: 2.7 | K34: 5
A35: 02 | B35: 88 | C35: 1019.4 | D35: 2.8 | E35: 8 | G35: 02 | H35: 89 | I35: 1029.7 | J35: 2.5 | K35: 7
A36: 03 | B36: 90 | C36: 1019.5 | D36: 3.2 | E36: 8 | G36: 03 | H36: 89 | I36: 1029.8 | J36: 2.5 | K36: 8
A37: 04 | B37: 89 | C37: 1019.1 | D37: 3.3 | E37: 8 | G37: 04 | H37: 89 | I37: 1030.1 | J37: 2.5 | K37: 8
A38: 05 | B38: 91 | C38: 1018.7 | D38: 3.4 | E38: 8 | G38: 05 | H38: 89 | I38: 1030.2 | J38: 2.5 | K38: 8
A39: 06 | B39: 93 | C39: 1018.8 | D39: 4 | E39: 8 | G39: 06 | H39: 90 | I39: 1030.3 | J39: 2.7 | K39: 8
A40: 07 | B40: 94 | C40: 1019.7 | D40: 4.8 | E40: 8 | G40: 07 | H40: 92 | I40: 1030.5 | J40: 3.1 | K40: 8
A41: 08 | B41: 93 | C41: 1021.3 | D41: 4.3 | E41: 8 | G41: 08 | H41: 92 | I41: 1031.1 | J41: 3.1 | K41: 8
A42: 09 | B42: 94 | C42: 1022.2 | D42: 4 | E42: 8 | G42: 09 | H42: 93 | I42: 1031.4 | J42: 3.4 | K42: 8
A43: 10 | B43: 92 | C43: 1023.7 | D43: 3.4 | E43: 8 | G43: 10 | H43: 93 | I43: 1031.6 | J43: 4.1 | K43: 7
A44: 11 | B44: 86 | C44: 1024.9 | D44: 2.5 | E44: 8 | G44: 11 | H44: 91 | I44: 1031.2 | J44: 4.4 | K44: 7
A45: 12 | B45: 84 | C45: 1025.4 | D45: 2.5 | E45: 8 | G45: 12 | H45: 88 | I45: 1031.2 | J45: 4.3 | K45: 8
A46: 13 | B46: 82 | C46: 1025.3 | D46: 2.7 | E46: 7 | G46: 13 | H46: 88 | I46: 1030.9 | J46: 4.4 | K46: 8
A47: 14 | B47: 86 | C47: 1025.2 | D47: 3.7 | E47: 7 | G47: 14 | H47: 87 | I47: 1030.9 | J47: 4.3 | K47: 8
A48: 15 | B48: 83 | C48: 1025.9 | D48: 3.5 | E48: 7 | G48: 15 | H48: 86 | I48: 1030.7 | J48: 4.3 | K48: 8
A49: 16 | B49: 81 | C49: 1026.5 | D49: 3.1 | E49: 7 | G49: 16 | H49: 87 | I49: 1031 | J49: 4.3 | K49: 8
A50: 17 | B50: 81 | C50: 1026.5 | D50: 3 | E50: 8 | G50: 17 | H50: 89 | I50: 1031 | J50: 4.4 | K50: 8
A51: 18 | B51: 81 | C51: 1027.3 | D51: 3 | E51: 7 | G51: 18 | H51: 90 | I51: 1031 | J51: 4.4 | K51: 8
A52: 19 | B52: 82 | C52: 1027.5 | D52: 3.3 | E52: 5 | G52: 19 | H52: 91 | I52: 1030.9 | J52: 4.5 | K52: 8
A53: 20 | B53: 83 | C53: 1028.2 | D53: 3.4 | E53: 7 | G53: 20 | H53: 92 | I53: 1030.9 | J53: 4.6 | K53: 8
A54: 21 | B54: 84 | C54: 1028.4 | D54: 3.3 | E54: 8 | G54: 21 | H54: 92 | I54: 1030.4 | J54: 4.9 | K54: 8
A55: 22 | B55: 84 | C55: 1028 | D55: 3.1 | E55: 8 | G55: 22 | H55: 92 | I55: 1030.2 | J55: 5.2 | K55: 8
A56: 23 | B56: 85 | C56: 1028.6 | D56: 2.7 | E56: 6 | G56: 23 | H56: 93 | I56: 1029.9 | J56: 5.5 | K56: 8
A57: Mittel | B57: =ROUND(AVERAGE(B33:B56),1) -> 86.6 | C57: =ROUND(AVERAGE(C33:C56),1) -> 1023.7 | D57: =ROUND(AVERAGE(D33:D56),1) -> 3.3 | E57: =ROUND(AVERAGE(E33:E56),1) -> 7.5 | G57: Mittel | H57: =ROUND(AVERAGE(H33:H56),1) -> 89.8 | I57: =ROUND(AVERAGE(I33:I56),1) -> 1030.5 | J57: =ROUND(AVERAGE(J33:J56),1) -> 3.8 | K57: =ROUND(AVERAGE(K33:K56),1) -> 7.7
D59: 2018-12-30 | J59: 2018-12-31

Sheet Kurztab.
A2: Wetterwarte: Köttewitz | L2: Monat: | M2: Dezember | R2: Jahr: | U2: 2018
A4: Dat. | B4: TTT | C4: TxTx | D4: TnTn | E4: Tg | F4: Umin. | G4: UU | H4: NN | I4: RRRR | J4: Art | L4: sss | M4: PPPP | N4: eee | O4: fff | R4: Tage mit | V4: fk | W4: Summe
J5: * | O5: Km/h | P5: SS | Q5: Art ( D ) | R5: RR | S5: Ge | T5: Bf6 | U5: Bf8 | V5: Km/h | W5: Gewitter
A6: 01. | B6: 0.3 | C6: 2.4 | D6: -0.5 | E6: -2.2 | F6: 90 | G6: 92.7 | H6: 6.4 | I6: 0.2 | J6: l | L6: 0.2 | M6: 1017.2 | N6: -0.8 | O6: 2.7 | P6: 0 | R6: 1 | V6: 16 | Z6: max >=30,0°C | AA6: max >=25,0°C | AB6: max <0,0°C | AC6: RR >=0,1 mm | AD6: RR >=1,0 mm | AE6: RR >=3,0 mm | AF6: RR >=10,0 mm | AG6: RR >=20,0 mm
A7: 02. | B7: 3.2 | C7: 4.8 | D7: 1.7 | E7: 0.6 | F7: 85 | G7: 90 | H7: 7.3 | I7: 6 | J7: l | L7: . | M7: 1007.7 | N7: 1.7 | O7: 9 | P7: 0 | R7: 1 | T7: 1 | V7: 40 | Z7: =COUNTIF(C6:C15,">=30") -> 0 | AA7: =COUNTIF(C6:C15,">=25") -> 0 | AB7: =COUNTIF(C6:C15,"<0") -> 0 | AC7: =COUNTIF(I6:I15,">=0,1") -> 10 | AD7: =COUNTIF(I6:I15,">=1") -> 6 | AE7: =COUNTIF(I6:I15,">=3") -> 4 | AF7: =COUNTIF(I6:I15,">=10") -> 0 | AG7: =COUNTIF(I6:I15,">=20") -> 0
A8: 03. | B8: 7.7 | C8: 14.1 | D8: 3.1 | E8: 2.2 | F8: 73 | G8: 89 | H8: 7 | I8: 1.6 | J8: l | L8: 0.5 | M8: 1003.5 | N8: 5.8 | O8: 5 | P8: 0 | R8: 1 | V8: 34 | Z8: =COUNTIF(C18:C27,">=30") -> 0 | AA8: =COUNTIF(C18:C27,">=25") -> 0 | AB8: =COUNTIF(C18:C27,"<0") -> 2 | AC8: =COUNTIF(I18:I27,">=0,1") -> 7 | AD8: =COUNTIF(I18:I27,">=1") -> 4 | AE8: =COUNTIF(I18:I27,">=3") -> 2 | AF8: =COUNTIF(I18:I27,">=10") -> 0 | AG8: =COUNTIF(I18:I27,">=20") -> 0
A9: 04. | B9: 6.7 | C9: 10.6 | D9: 2.7 | E9: 1.1 | F9: 72 | G9: 82 | H9: 5.5 | I9: 0.2 | J9: l | L9: 1.6 | M9: 1014.2 | N9: 3.9 | O9: 11 | P9: 0 | R9: 1 | T9: 1 | V9: 40 | Z9: =COUNTIF(C30:C40,">=30") -> 0 | AA9: =COUNTIF(C30:C40,">=25") -> 0 | AB9: =COUNTIF(C30:C40,"<0") -> 0 | AC9: =COUNTIF(I30:I40,">=0,1") -> 10 | AD9: =COUNTIF(I30:I40,">=1") -> 5 | AE9: =COUNTIF(I30:I40,">=3") -> 4 | AF9: =COUNTIF(I30:I40,">=10") -> 1 | AG9: =COUNTIF(I30:I40,">=20") -> 0
A10: 05. | B10: 1.7 | C10: 5.1 | D10: -1.2 | E10: -2.8 | F10: 65 | G10: 83 | H10: 2.4 | I10: 0.1 | J10: l | L10: 2.8 | M10: 1028 | N10: -1 | O10: 5 | P10: 0 | R10: 1 | V10: 24
A11: 06. | B11: 3.2 | C11: 5.1 | D11: 1.4 | E11: 0.6 | F11: 62 | G11: 79 | H11: 7.8 | I11: 0.7 | J11: l | L11: . | M11: 1019.7 | N11: -0.2 | O11: 9 | P11: 0 | R11: 1 | T11: 1 | V11: 39 | Z11: min <0,0°C | AA11: min <0-10,0°C | AB11: min >20°C | AC11: rel.Lf. >=70% | AE11: rel.Lf. <=40%
A12: 07. | B12: 7.6 | C12: 10.9 | D12: 3.5 | E12: 3.3 | F12: 77 | G12: 93 | H12: 8 | I12: 6.1 | J12: l | L12: . | M12: 1009.7 | N12: 6.3 | O12: 3 | P12: 0 | R12: 1 | V12: 34 | Z12: =COUNTIF(D6:D15,"<0") -> 2 | AA12: =COUNTIF(D6:D15,"<=-10") -> 0 | AB12: =COUNTIF(D6:D15,">=20") -> 0 | AC12: =COUNTIF(F6:F15,">=70") -> 7 | AE12: =COUNTIF(F6:F15,"<=40") -> 0
A13: 08. | B13: 7.4 | C13: 11.2 | D13: 5.2 | E13: 2.8 | F13: 62 | G13: 73 | H13: 5.7 | I13: 1.8 | J13: l | L13: 1.2 | M13: 1004.3 | N13: 2.9 | O13: 16 | P13: 0 | R13: 1 | T13: 1 | V13: 52 | Z13: =COUNTIF(D18:D27,"<0") -> 6 | AA13: =COUNTIF(D18:D27,"<=-10") -> 0 | AB13: =COUNTIF(D18:D27,">=20") -> 0 | AC13: =COUNTIF(F18:F27,">=70") -> 10 | AE13: =COUNTIF(F18:F27,"<=40") -> 0
A14: 09. | B14: 7.3 | C14: 9.2 | D14: 4.8 | E14: 3.3 | F14: 71 | G14: 80 | H14: 7.5 | I14: 3.7 | J14: l | L14: 0.2 | M14: 996.6 | N14: 4 | O14: 17 | P14: 0 | R14: 1 | T14: 1 | V14: 55 | Z14: =COUNTIF(D30:D40,"<0") -> 1 | AA14: =COUNTIF(D30:D40,"<=-10") -> 0 | AB14: =COUNTIF(D30:D40,">=20") -> 0 | AC14: =COUNTIF(F30:F40,">=70") -> 10 | AE14: =COUNTIF(F30:F40,"<=40") -> 0
A15: 10. | B15: 3.6 | C15: 5.4 | D15: 2.1 | E15: 1.1 | F15: 77 | G15: 84 | H15: 7.7 | I15: 4 | J15: lr | L15: 0.9 | M15: 1011.1 | N15: 1.1 | O15: 16 | P15: 0 | R15: 1 | T15: 1 | V15: 50
A16: Su | B16: =SUM(B6:B15) -> 48.7 | C16: =SUM(C6:C15) -> 78.8 | D16: =SUM(D6:D15) -> 22.8 | E16: =SUM(E6:E15) -> 10 | F16: XXX | G16: XXX | H16: XXX | I16: =SUM(I6:I15) -> 24.4 | J16: XX | L16: =SUM(L6:L15) -> 7.4 | M16: XXX | N16: XXX | O16: XXX | P16: XXX | Q16: X | R16: =SUM(R6:R15) -> 10 | S16: =SUM(S6:S15) -> 0 | T16: =SUM(T6:T15) -> 6 | U16: =SUM(U6:U15) -> 0 | V16: XXX | Z16: ohne Sonne | AA16: Son. 0,1-0,9 | AB16: Son. >=10,0 | AC16: Sch. >=1 cm | AD16: Sch. >=3 cm | AE16: Sch. >=10 cm
A17: Mi | B17: =AVERAGE(B6:B15) -> 4.87 | C17: =AVERAGE(C6:C15) -> 7.88 | D17: 2.28 | E17: 1 | F17: 73.4 | G17: 84.57 | H17: 6.53 | I17: 2.44 | J17: XX | L17: =AVERAGE(L6:L15) -> 1.057142857 | M17: =AVERAGE(M6:M15) -> 1011.2 | N17: =AVERAGE(N6:N15) -> 2.37 | O17: =AVERAGE(O6:O15) -> 9.37 | P17: =AVERAGE(P6:P15) -> 0 | Q17: X | R17: XX | S17: XX | T17: XX | U17: XX | V17: =AVERAGE(V6:V15) -> 38.4 | Z17: =COUNTIF(L6:L15,".") -> 3 | AA17: =COUNTIF(L6:L15,"<1") -> 4 | AB17: =COUNTIF(L6:L15,">=10") -> 0 | AC17: =COUNTIF(P6:P15,">=1") -> 0 | AD17: =COUNTIF(P6:P15,">=3") -> 0 | AE17: =COUNTIF(P6:P15,">=10") -> 0
A18: 11. | B18: 2.5 | C18: 3.2 | D18: 1.7 | E18: 1.1 | F18: 86 | G18: 91 | H18: 8 | I18: 8.3 | J18: l | L18: . | M18: 1014.6 | N18: 1.1 | O18: 14 | P18: 0 | R18: 1 | T18: 1 | V18: 50 | Z18: =COUNTIF(L18:L27,".") -> 5 | AA18: =COUNTIF(L18:L27,"<1") -> 5 | AB18: =COUNTIF(L18:L27,">=10") -> 0 | AC18: =COUNTIF(P18:P27,">=1") -> 5 | AD18: =COUNTIF(P18:P27,">=3") -> 0 | AE18: =COUNTIF(P18:P27,">=10") -> 0
A19: 12. | B19: 1.2 | C19: 2.1 | D19: -0.7 | E19: -3.3 | F19: 90 | G19: 94 | H19: 7.5 | I19: 3.4 | J19: lr | L19: . | M19: 1022.7 | N19: 0.4 | O19: 5 | P19: 0 | R19: 1 | V19: 29 | Z19: =COUNTIF(L30:L40,".") -> 9 | AA19: =COUNTIF(L30:L40,"<1") -> 1 | AB19: =COUNTIF(L30:L40,">=10") -> 0 | AC19: =COUNTIF(P30:P40,">=1") -> 0 | AD19: =COUNTIF(P30:P40,">=3") -> 0 | AE19: =COUNTIF(P30:P40,">=10") -> 0
A20: 13. | B20: -1.2 | C20: 0.2 | D20: -3.5 | E20: -5.6 | F20: 88 | G20: 92 | H20: 7.7 | I20: . | L20: 0.2 | M20: 1023.7 | N20: -2.3 | O20: 1 | P20: 1 | Q20: T | V20: 11
A21: 14. | B21: -0.6 | C21: 0.5 | D21: -1.4 | E21: -2.2 | F21: 82 | G21: 90 | H21: 7.8 | I21: . | L21: . | M21: 1025 | N21: -2.1 | O21: 2 | P21: 1 | Q21: D | V21: 16 | Z21: Max TT | AA21: Max TxTx | AB21: Min TgTg | AC21: Max RR
A22: 15. | B22: -1.1 | C22: -0.7 | D22: -1.4 | E22: -1.7 | F22: 82 | G22: 88 | H22: 8 | I22: 0.1 | J22: T | L22: . | M22: 1027.2 | N22: -2.8 | O22: 3 | P22: 1 | Q22: D | R22: 1 | V22: 19 | Z22: =MAX(B6:B15,B18:B27,B30:B40) -> 7.7 | AA22: =MAX(C6:C15,C18:C27,C30:C40) -> 14.1 | AB22: =MIN(E6:E15,E18:E27,E30:E40) -> -5.6 | AC22: =MAX(I6:I15,I18:I27,I30:I40) -> 10.3
A23: 16. | B23: -1.8 | C23: -0.9 | D23: -2.6 | E23: -2.8 | F23: 75 | G23: 83 | H23: 7.6 | I23: 0.3 | J23: T | L23: 0.3 | M23: 1017.9 | N23: -4.3 | O23: 7 | P23: 1 | Q23: D | R23: 1 | V23: 32 | Z23: Min TT | AA23: Min TnTn | AB23: Min U14 | AC23: Max SS
A24: 17. | B24: 0.9 | C24: 3.3 | D24: -1.3 | E24: -1.1 | F24: 83 | G24: 88 | H24: 7.3 | I24: 0.1 | J24: l | L24: 0.7 | M24: 1021.6 | N24: -0.9 | O24: 3 | P24: 1 | Q24: D | R24: 1 | V24: 24 | Z24: =MIN(B6:B15,B18:B27,B30:B40) -> -1.8 | AA24: =MIN(D6:D15,D18:D27,D30:D40) -> -3.5 | AB24: =MIN(F6:F15,F18:F27,F30:F40) -> 62 | AC24: =MAX(P6:P15,P18:P27,P30:P40) -> 1
A25: 18. | B25: 2.7 | C25: 5.8 | D25: 0.4 | E25: -1.7 | F25: 78 | G25: 91 | H25: 6 | I25: . | L25: 0.1 | M25: 1026.7 | N25: 1.3 | O25: 4 | P25: 0 | V25: 27
A26: 19. | B26: 1.6 | C26: 2.2 | D26: 1.2 | E26: 0 | F26: 81 | G26: 85 | H26: 6.4 | I26: 2 | J26: lT | L26: . | M26: 1019.7 | N26: -0.6 | O26: 12 | P26: 0 | R26: 1 | T26: 1 | V26: 40
A27: 20. | B27: 2.2 | C27: 3.9 | D27: 0.3 | E27: 0 | F27: 86 | G27: 90 | H27: 7.9 | I27: 1.2 | J27: lT | L27: 0.1 | M27: 1017.2 | N27: 0.6 | O27: 6 | P27: 0 | Q27: R | R27: 1 | V27: 26
A28: Su | B28: =SUM(B18:B27) -> 6.4 | C28: =SUM(C18:C27) -> 19.6 | D28: =SUM(D18:D27) -> -7.3 | E28: =SUM(E18:E27) -> -17.3 | F28: XXX | G28: XXX | H28: XXX | I28: =SUM(I18:I27) -> 15.4 | J28: XX | L28: =SUM(L18:L27) -> 1.4 | M28: XXX | N28: XXX | O28: XXX | P28: XXX | Q28: X | R28: =SUM(R18:R27) -> 7 | S28: =SUM(S18:S27) -> 0 | T28: =SUM(T18:T27) -> 2 | U28: =SUM(U18:U27) -> 0 | V28: XXX
A29: Mi | B29: =AVERAGE(B18:B27) -> 0.64 | C29: =AVERAGE(C18:C27) -> 1.96 | D29: -0.73 | E29: -1.73 | F29: 83.1 | G29: 89.2 | H29: 7.42 | I29: 2.2 | J29: XX | L29: =AVERAGE(L18:L27) -> 0.28 | M29: =AVERAGE(M18:M27) -> 1021.63 | N29: =AVERAGE(N18:N27) -> -0.96 | O29: =AVERAGE(O18:O27) -> 5.7 | P29: =AVERAGE(P18:P27) -> 0.5 | Q29: X | R29: XX | S29: XX | T29: XX | U29: XX | V29: =AVERAGE(V18:V27) -> 27.4
A30: 21. | B30: 6.8 | C30: 11.3 | D30: 4.4 | E30: 2.8 | F30: 74 | G30: 82 | H30: 7.6 | I30: 5.2 | J30: l | L30: . | M30: 1010 | N30: 3.9 | O30: 15 | P30: 0 | R30: 1 | T30: 1 | U30: 1 | V30: 64
A31: 22. | B31: 7.6 | C31: 10.7 | D31: 5.2 | E31: 4.4 | F31: 69 | G31: 87 | H31: 7.7 | I31: 6.7 | J31: l | L31: 0.1 | M31: 1009 | N31: 5.5 | O31: 11 | P31: 0 | R31: 1 | T31: 1 | V31: 61
A32: 23. | B32: 6.5 | C32: 8.1 | D32: 4.4 | E32: 3.9 | F32: 76 | G32: 85 | H32: 7.8 | I32: 10.3 | J32: l | L32: . | M32: 1017.2 | N32: 4.1 | O32: 9 | P32: 0 | R32: 1 | T32: 1 | V32: 45
A33: 24. | B33: 1.6 | C33: 4.4 | D33: -0.4 | E33: -0.6 | F33: 83 | G33: 89 | H33: 7.96 | I33: 0.7 | J33: lr | L33: . | M33: 1022.2 | N33: 0 | O33: 9 | P33: 0 | R33: 1 | V33: 35
A34: 25. | B34: 2.9 | C34: 3.9 | D34: 1.1 | E34: 0.6 | F34: 80 | G34: 86 | H34: 8 | I34: 0.1 | J34: lT | L34: . | M34: 1030.4 | N34: 8 | O34: 14 | P34: 0 | R34: 1 | T34: 1 | V34: 40
A35: 26. | B35: 3.8 | C35: 4.8 | D35: 2.7 | E35: 2.8 | F35: 79 | G35: 86 | H35: 8 | I35: 0.5 | J35: l | L35: . | M35: 1028.8 | N35: 1.7 | O35: 11 | P35: 0 | R35: 1 | T35: 1 | V35: 42
A36: 27. | B36: 5.6 | C36: 7.9 | D36: 4.1 | E36: 2.2 | F36: 75 | G36: 89 | H36: 7.1 | I36: . | L36: 1.2 | M36: 1026.2 | N36: 3.9 | O36: 3 | P36: 0 | V36: 24
A37: 28. | B37: 4.4 | C37: 5.7 | D37: 3.5 | E37: 2.8 | F37: 70 | G37: 86 | H37: 7.8 | I37: 0.6 | J37: l | L37: . | M37: 1025.9 | N37: 2.2 | O37: 8 | P37: 0 | R37: 1 | V37: 32
A38: 29. | B38: 4.5 | C38: 5.7 | D38: 3.6 | E38: 2.2 | F38: 87 | G38: 89 | H38: 7.8 | I38: 4.3 | J38: l | L38: . | M38: 1027.5 | N38: 2.8 | O38: 9 | P38: 0 | R38: 1 | T38: 1 | V38: 45
A39: 30. | B39: 5.4 | C39: 6.2 | D39: 4.6 | E39: 3.3 | F39: 79 | G39: 87 | H39: 7.5 | I39: 1.1 | J39: l | L39: . | M39: 1023.7 | N39: 3.3 | O39: 15 | P39: 0 | R39: 1 | T39: 1 | V39: 50
A40: 31. | B40: 5.4 | C40: 6.6 | D40: 4.1 | E40: 3.3 | F40: 86 | G40: 90 | H40: 7.7 | I40: 0.5 | J40: l | L40: . | M40: 1030.5 | N40: 3.8 | O40: 8 | P40: 0 | R40: 1 | V40: 26
A41: Su | B41: =SUM(B30:B40) -> 54.5 | C41: =SUM(C30:C40) -> 75.3 | D41: =SUM(D30:D40) -> 37.3 | E41: =SUM(E30:E40) -> 27.7 | F41: XXX | G41: XXX | H41: XXX | I41: =SUM(I30:I40) -> 30 | J41: XX | L41: =SUM(L30:L40) -> 1.3 | M41: XXX | N41: XXX | O41: XXX | P41: XXX | Q41: X | R41: =SUM(R30:R40) -> 10 | S41: =SUM(S30:S40) -> 0 | T41: =SUM(T30:T40) -> 7 | U41: =SUM(U30:U40) -> 1 | V41: XXX
A42: Mi | B42: =AVERAGE(B30:B40) -> 4.954545455 | C42: =AVERAGE(C30:C40) -> 6.845454545 | D42: 3.390909091 | E42: 2.518181818 | F42: 78 | G42: 86.90909091 | H42: 7.723636364 | I42: 3 | J42: XX | L42: =AVERAGE(L30:L40) -> 0.65 | M42: =AVERAGE(M30:M40) -> 1022.854545 | N42: =AVERAGE(N30:N40) -> 3.563636364 | O42: =AVERAGE(O30:O40) -> 10.18181818 | P42: =AVERAGE(P30:P40) -> 0 | Q42: X | R42: XX | S42: XX | T42: XX | U42: XX | V42: =AVERAGE(V30:V40) -> 42.18181818
A43: MSu | B43: =SUM(B16+B28+B41) -> 109.6 | C43: =SUM(C16+C28+C41) -> 173.7 | D43: =SUM(D16+D28+D41) -> 52.8 | E43: =SUM(E16+E28+E41) -> 20.4 | F43: XXX | G43: XXX | H43: XXX | I43: =SUM(I16+I28+I41) -> 69.8 | J43: XX | L43: =SUM(L16+L28+L41) -> 10.1 | M43: XXX | N43: XXX | O43: XXX | P43: XXX | Q43: X | R43: =SUM(R16+R28+R41) -> 27 | S43: =SUM(S16+S28+S41) -> 0 | T43: =SUM(T16+T28+T41) -> 15 | U43: =SUM(U16+U28+U41) -> 1 | V43: XXX
A44: MMi | B44: =AVERAGE(B6:B15,B18:B27,B30:B40) -> 3.535483871 | C44: 5.603225806 | D44: 1.703225806 | E44: 0.6580645161 | F44: 78.16129032 | G44: 86.89354839 | H44: 7.240645161 | I44: 2.585185185 | J44: XX | L44: =AVERAGE(L6:L15,L18:L27,L30:L40) -> 0.7214285714 | M44: =AVERAGE(M6:M15,M18:M27,M30:M40) -> 1018.7 | N44: =AVERAGE(N6:N15,N18:N27,N30:N40) -> 1.719354839 | O44: =AVERAGE(O6:O15,O18:O27,O30:O40) -> 8.474193548 | P44: =AVERAGE(P17,P29,P42) -> 0.1666666667 | Q44: X | R44: XX | S44: XX | T44: XX | U44: XX | V44: =AVERAGE(V17,V29,V42) -> 35.99393939
B46: Norm | C46: % v N.- | D46: Abw. | E46: Tage mit | L46: Niederschlag mm | P46: Sonnenscheindauer Std.
B47: wert | C47: wert | D47: K | E47: Max.d.Lufttemp.°C | L47: >/= 0,1 | O47: =SUM(AC7:AC9) -> 27 | P47: ohne Sonne | V47: =SUM(Z17:Z19) -> 17
A48: TTT | B48: 1.1 | C48: XXXX | D48: =SUM(B44-B48) -> 2.435483871 | E48: Tropentag/Hitzetag | I48: =SUM(Z7:Z9) -> 0 | L48: >/= 1,0 | O48: =SUM(AD7:AD9) -> 15 | P48: 0,1 bis 0,9 | V48: =SUM(AA17:AA19) -> 10
A49: RRR | B49: 53 | C49: =SUM(I43*100/B49) -> 131.6981132 | D49: XXXX | E49: Sommertag | I49: =SUM(AA7:AA9) -> 0 | L49: >/= 3,0 | O49: =SUM(AE7:AE9) -> 10 | P49: >/= 10,0 | V49: =SUM(AB17:AB19) -> 0
A50: sss | B50: 55 | C50: =SUM(L43*100/B50) -> 18.36363636 | D50: XXXX | E50: Eistag | I50: =SUM(AB7:AB9) -> 2 | L50: >/=10,0 | O50: =SUM(AF7:AF9) -> 1 | P50: Schneedecke cm
A51: astr. | D51: XXXX | E51: Polartag | I51: 0 | L51: >/= 20,0 | O51: =SUM(AG7:AG9) -> 0 | P51: >/= 1 | V51: =SUM(AC17:AC19) -> 5
A52: mgl. | B52: 247 | C52: =SUM(L43*100/B52) -> 4.089068826 | D52: XXXX | E52: Min.d.Lufttemp.°C | L52: Rel. Luftfeuchte 14 Uhr | P52: >/= 3 | V52: =SUM(AD17:AD19) -> 0
A53: sss | D53: XXXX | E53: Frosttag | I53: =SUM(Z12:Z14) -> 9 | L53: >/=70% | O53: =SUM(AC12:AC14) -> 27 | P53: >/= 10 | V53: =SUM(AE17:AE19) -> 0
E54: Tropennacht | I54: =SUM(AB12:AB14) -> 0 | L54: </=40% | O54: =SUM(AE12:AE14) -> 0
E57: Unter "Tage mit" sind die Angaben Bft 6 & Bft 8 nicht 10 min. - Mittel sonder 2,5 s - Werte.
E58: Wenn ein Wert auch mit einem 10 min. - Wert erreicht wird, erfolgt eine rote Markierung.
E59: Dies gilt rückwirkend bis November 2012.
F113: Tage mit Bft 6 /8 eigentlich in 10 min. - Mittel

Sheet Sichtst.
E1: Sichtweitenstatistik
B5: Wetterstation: Köttewitz | F5: Monat: | G5: Dezember | K5: Jahr: | L5: 2018
A7: Dat. | B7: Nebeldauer | C7: Nebel | D7: Dunst | E7: Sicht | F7: Sicht | G7: Sicht | H7: Sicht
B8: in St. u. Min. | E8: mittel | F8: normal | G8: gut | H8: sehr gut
A9: 01. | D9: 1 | E9: 1 | F9: 1 | N9: =IF(ISNUMBER(B9),B9*24," ") ->  | O9: =IF(ISNUMBER(N9),IF(N9<1,1," ")," ") ->  | P9: =IF(ISNUMBER(N9),IF(N9<8,2," ")," ") ->  | Q9: =IF(ISNUMBER(N9),IF(N9<24,3," ")," ") ->  | R9: =MIN(O9:Q9) -> 0
A10: 02. | D10: 1 | E10: 1 | F10: 1 | R10: 0
A11: 03. | E11: 1 | F11: 1 | G11: 1 | R11: 0
A12: 04. | F12: 1 | G12: 1 | R12: 0
A13: 05. | F13: 1 | G13: 1 | R13: 0
A14: 06. | D14: 1 | E14: 1 | F14: 1 | G14: 1 | R14: 0
A15: 07. | E15: 1 | F15: 1 | G15: 1 | R15: 0
A16: 08. | F16: 1 | G16: 1 | R16: 0
A17: 09. | F17: 1 | G17: 1 | R17: 0
A18: 10. | E18: 1 | F18: 1 | R18: 0
A19: 11. | E19: 1 | F19: 1 | R19: 0
A20: 12. | D20: 1 | E20: 1 | F20: 1 | R20: 0
A21: 13. | D21: 1 | E21: 1 | F21: 1 | R21: 0
A22: 14. | E22: 1 | F22: 1 | R22: 0
A23: 15. | D23: 1 | E23: 1 | F23: 1 | R23: 0
A24: 16. | E24: 1 | F24: 1 | R24: 0
A25: 17. | E25: 1 | F25: 1 | R25: 0
A26: 18. | E26: 1 | F26: 1 | R26: 0
A27: 19. | E27: 1 | F27: 1 | R27: 0
A28: 20. | D28: 1 | E28: 1 | F28: 1 | R28: 0
A29: 21. | F29: 1 | G29: 1 | R29: 0
A30: 22. | F30: 1 | G30: 1 | R30: 0
A31: 23. | F31: 1 | R31: 0
A32: 24. | E32: 1 | F32: 1 | R32: 0
A33: 25. | E33: 1 | F33: 1 | R33: 0
A34: 26. | D34: 1 | E34: 1 | F34: 1 | R34: 0
A35: 27. | D35: 1 | E35: 1 | F35: 1 | G35: 1
A36: 28. | D36: 1 | E36: 1 | F36: 1
A37: 29. | D37: 1 | E37: 1 | F37: 1
A38: 30. | D38: 1 | E38: 1 | F38: 1
A39: 31. | E39: 1 | F39: 1
A40: Su. | B40: =SUM(B9:B39) -> 00:00:00 | C40: 0 | D40: 12 | E40: 24 | F40: 31 | G40: 10 | H40: 0
B42: Anzahl der Nebeltage : | E42: =SUM(C40) -> 0
B43: Anzahl der Tage Sicht >= 50 km : | E43: =SUM(G40) -> 10

Sheet Monatsdiagramm
A1: Klimadiagramm | C1: Wetterstation Köttewitz | I1: (214 m ü. NHN)
A3: Dezember 2018
C5: aktuell | D5: langj. Mittel | E5: Abw. vom lj. Mittel
B6: höchste Temperatur (°C): | C6: =MAX('Daten für Diagr.'!C2:C32) -> 14.1 | D6: am | E6: 2018-12-03
B7: mittlere Temperatur (°C): | C7: ='Daten für Diagr.'!B33 -> 3.519354839 | D7: =Kurztab.!B48 -> 1.1 | E7: =C7-D7 -> 2.419354839 | F7: K
B8: tiefste Temperatur (°C): | C8: =MIN('Daten für Diagr.'!D2:D32) -> -3.5 | D8: am | E8: 2018-12-13
B9: Niederschlagshöhe (mm): | C9: =Kurztab.!I43 -> 69.8 | D9: =Kurztab.!B49 -> 53 | E9: =100/D9*C9 -> 131.6981132 | F9: %
B10: Sonnenscheindauer (Std.)*: | C10: =Kurztab.!L43 -> 10.1 | D10: =Kurztab.!B50 -> 55 | E10: =100/D10*C10 -> 18.36363636 | F10: %
A66: *Die Wetterstation kann, durch geographische Hindernisse, nicht die maximal mögliche Sonnenscheindauer aufzeichnen. Es gilt ein Übergangsprozentsatz von:
A67: Dez 30 %; Okt/Nov & Jan/Feb 40 %; Mär & Sep 65 %; Apr & Aug 80 %; Mai - Jul 90 %. Durch Baumfällarbeiten seit Orkan Herwart (Okt 2017) Okt & Feb 50 %.
A68: Diese Werte entsprechend annähernd 100 % (Normalwert Köttewitz). Nach 10 Jahren erfolgt die Umstellung des Prozentsatzes nach der örtlichen Aufzeichnung.

Sheet Daten für Diagr.
B1: Td | C1: Tmax | D1: Tmin | E1: RR | F1: Schnee | G1: Sonne | H1: Luftdr. | I1: MWT | J1: GWL | K1: Name | L1: Sonstiges
A2: 2018-12-01 | B2: 0.3 | C2: 2.4 | D2: -0.5 | E2: 0.2 | G2: 0.2 | H2: 1017.2 | I2: 2.1 | J2: SWz | K2: T Jadwiga | L2: Von 00:00 Uhr - 01:09 Uhr mäßiger gefrierender Regen (WW 67). Von 01:10 Uhr - 03:04 Uhr leichter gefrierender Regen (WW 66).
A3: 2018-12-02 | B3: 3.2 | C3: 4.8 | D3: 1.7 | E3: 6 | H3: 1007.7 | I3: 2 | J3: Wz | L3: Von 12:25 Uhr - 12:59 Uhr; 16:30 Uhr - 18:19 Uhr; 18:30 Uhr - 18:59 Uhr; Gegen 21:30 Uhr mäßiger Regen (WW 63). Um 07:30 Uhr; Von 12:00 Uhr - 12:24 Uhr; 15:55 Uhr - 16:29 Uhr; 18:20 Uhr - 18:29 Uhr; Um 20:15 Uhr leichter Regen (WW 61).
A4: 2018-12-03 | B4: 7.7 | C4: 14.1 | D4: 3.1 | E4: 1.6 | G4: 0.5 | H4: 1003.5 | I4: 1.9 | K4: T Kerstin | L4: Von 06:30 Uhr - 07:09 Uhr; 08:00 Uhr - 08:19 Uhr mäßiger Regen (WW 63). Von 05:05 Uhr - 06:29 Uhr; 07:10 Uhr - 07:59 Uhr; 08:20 Uhr - 08:49 Uhr leichter Regen (WW 61).
A5: 2018-12-04 | B5: 6.7 | C5: 10.6 | D5: 2.7 | E5: 0.2 | G5: 1.6 | H5: 1014.2 | I5: 1.8 | L5: Vormittags leichter Regenschauer (WW 80). Zwischen 06:00 Uhr - 07:59 Uhr leichter Regen, teils mäßig (WW 61/63).
A6: 2018-12-05 | B6: 1.7 | C6: 5.1 | D6: -1.2 | E6: 0.1 | G6: 2.8 | H6: 1028 | I6: 1.75 | J6: Wa | K6: H Eckhard
A7: 2018-12-06 | B7: 3.2 | C7: 5.1 | D7: 1.4 | E7: 0.7 | H7: 1019.7 | I7: 1.65 | J7: Wz | K7: T Luana | L7: Gegen 15:30 Uhr mäßiger Regen (WW 63). Zwischen 03:30 Uhr - 04:29 Uhr leichter Regen (WW 61).
A8: 2018-12-07 | B8: 7.6 | C8: 10.9 | D8: 3.5 | E8: 6.1 | H8: 1009.7 | I8: 1.6 | L8: Zwischen 19:00 Uhr - 19:59 Uhr mäßiger-starker Regen (WW 63-65). Anhaltender Regen mit nur wenigen Pausen (mäßiger Regen) (WW 63).
A9: 2018-12-08 | B9: 7.4 | C9: 11.2 | D9: 5.2 | E9: 1.8 | G9: 1.2 | H9: 1004.3 | I9: 1.55 | J9: NWz | K9: T Marielou | L9: Gegen 16:30 Uhr leichter Regenschauer (WW 80). Gegen 02:00 Uhr mäßiger Regen (WW 63).
A10: 2018-12-09 | B10: 7.3 | C10: 9.2 | D10: 4.8 | E10: 3.7 | G10: 0.2 | H10: 996.6 | I10: 1.5 | L10: Um 23:00 Uhr mäßiger Regenschauer (WW 81). Zwischen 01:00 Uhr - 01:59 Uhr; Zwischen 19:15 Uhr - 22:59 Uhr mehrfach leichter Regenschauer (WW 80). Von 05:30 Uhr - 05:59 Uhr; Um 09:30 Uhr mäßiger Regen (WW 63). Zwischen 07:00 Uhr - 08:09 Uhr mäßiger Regen, unterbrochen (WW 62).
A11: 2018-12-10 | B11: 3.6 | C11: 5.4 | D11: 2.1 | E11: 2 | G11: 0.9 | H11: 1011.1 | I11: 1.4 | L11: Gegen 14:45 Uhr leichter Graupelschauer (WW 87). Zwischen 00:00 Uhr und 23:59 Uhr > 10 x leichter Regenschauer und leichter/mäßiger Regen (WW 80) (WW 61/63).
A12: 2018-12-11 | B12: 2.5 | C12: 3.2 | D12: 1.7 | E12: 8.3 | H12: 1014.6 | I12: 1.35 | J12: HFa | K12: H Gotthard | L12: Gegen 00:00 Uhr; 01:15 Uhr leichter Regenschauer (WW 80). Von 07:10 Uhr - 07:29 Uhr; 07:50 Uhr - 10:59 Uhr; 16:00 Uhr - 16:39 Uhr; 17:40 Uhr - Uhr mäßiger Regen (WW 63). Von 04:10 Uhr - 07:09 Uhr; 07:30 Uhr - 07:49 Uhr; 15:30 Uhr - 15:59 Uhr; 16:40 Uhr - 17:39 Uhr leichter Regen (WW 61). Von 11:00 Uhr - 15:29 Uhr leichter Regen und Sprühregen (WW 58).
A13: 2018-12-12 | B13: 1.2 | C13: 2.1 | D13: -0.7 | E13: 3.4 | F13: 0 | H13: 1022.7 | I13: 1.3 | L13: Gegen 17:00 Uhr leichter Graupelschauer (WW 87). Von 20:30 Uhr - 21:49 Uhr leichter Schneefall (WW 71). Gegen 05:00 Uhr; Von 10:10 Uhr - 10:39 Uhr mäßiger Regen (WW 63). Zwischen 00:00 Uhr - 04:59 Uhr; 05:10 Uhr - 10:09 Uhr leichter Regen (WW 61).
A14: 2018-12-13 | B14: -1.2 | C14: 0.2 | D14: -3.5 | F14: 1 | G14: 0.2 | H14: 1023.7 | I14: 1.25 | L14: Vor 07:00 Uhr leichter Schneefall (WW 71).
A15: 2018-12-14 | B15: -0.6 | C15: 0.5 | D15: -1.4 | F15: 1 | H15: 1025 | I15: 1.15
A16: 2018-12-15 | B16: -1.1 | C16: -0.7 | D16: -1.4 | E16: 0.1 | F16: 1 | H16: 1027.2 | I16: 1.1 | L16: Zwischen 10:00 Uhr - 17:00 Uhr anhaltender leichter Schneefall (WW 71).
A17: 2018-12-16 | B17: -1.8 | C17: -0.9 | D17: -2.6 | E17: 0.3 | F17: 1 | G17: 0.3 | H17: 1017.9 | I17: 1.05 | J17: Ww | K17: T Oswalde | L17: Von 17:50 Uhr - 17:59 Uhr; 18:55 Uhr - 20:29 Uhr leichter Schneefall (WW 71). Von 18:00 Uhr - 18:54 Uhr Schneeflocken (WW 70).
A18: 2018-12-17 | B18: 0.9 | C18: 3.3 | D18: -1.3 | E18: 0.1 | F18: 1 | G18: 0.7 | H18: 1021.6 | I18: 1
A19: 2018-12-18 | B19: 2.7 | C19: 5.8 | D19: 0.4 | F19: 0 | G19: 0.1 | H19: 1026.7 | I19: 0.95 | K19: T Pia
A20: 2018-12-19 | B20: 1.6 | C20: 2.2 | D20: 1.2 | E20: 2 | F20: 0 | H20: 1019.7 | I20: 0.9 | L20: Von 17:55 Uhr - 22:49 Uhr leichter Regen (WW 61).
A21: 2018-12-20 | B21: 2.2 | C21: 3.9 | D21: 0.3 | E21: 1.2 | F21: 0 | G21: 0.1 | H21: 1017.2 | I21: 0.85 | L21: Von 06:30 Uhr - 09:29 Uhr leichter/mäßiger Schneeregen (WW 66 /67). Von 00:10 Uhr - 06:29 Uhr; Zwischen 17:30 Uhr - 18:29 Uhr leichter/mäßiger Regen (WW 61/63). Von 09:30 Uhr - 11:40 Uhr; Um 20:00 Uhr leichter Regen (WW 61).
A22: 2018-12-21 | B22: 6.8 | C22: 11.3 | D22: 4.4 | E22: 5.2 | H22: 1010 | I22: 0.8 | J22: Wz | K22: T Stina | L22: Von 22:20 Uhr - 22:29 Uhr starker Regen (WW 65). Von 11:20 Uhr - 11:49 Uhr; 13:20 Uhr - 14:49 Uhr; 22:10 Uhr - 22:19 Uhr; 22:30 Uhr - 22:49 Uhr mäßiger Regen (WW 63). Gegen 00:30 Uhr. Von 14:50 Uhr - 16:19 Uhr; Um 18:25 Uhr leichter Regen (WW 61)
A23: 2018-12-22 | B23: 7.6 | C23: 10.7 | D23: 5.2 | E23: 6.7 | G23: 0.1 | H23: 1009 | I23: 0.8 | L23: Von 12:10 Uhr - 12:19 Uhr; 13:10 Uhr - 13:19 Uhr starker Regen (WW 65). Gegen 02:10 Uhr; Von 07:20 Uhr - 07:29 Uhr; 12:20 Uhr - 12:29 Uhr; 13:00 Uhr - 13:09 Uhr; 13:20 Uhr - 14:49 Uhr; 18:10 Uhr - 18:39 Uhr; 20:20 Uhr - 20:59 Uhr; Gegen 22:15 Uhr; 22:50 Uhr mäßiger Regen (WW 63). Von 05:00 Uhr - 05:19 Uhr; 06:15 Uhr - 07:19 Uhr; 07:30 Uhr - 10:59 Uhr; 12:00 Uhr - 12:09 Uhr; 14:50 Uhr - 15:29 Uhr; 17:10 Uhr - 17:54 Uhr leichter Regen (WW 61).
A24: 2018-12-23 | B24: 6.5 | C24: 8.1 | D24: 4.4 | E24: 10.3 | H24: 1017.2 | I24: 0.75 | K24: T Tete | L24: Zwischen 08:10 Uhr - 08:49 Uhr; Gegen 10:00 Uhr; Von 19:30 Uhr - 23:59 Uhr mäßiger Regen (WW 63). Gegen 01:10 Uhr; 03:05 Uhr; Von 16:05 Uhr - 19:29 Uhr leichter Regen (WW 61).
A25: 2018-12-24 | B25: 1.1 | C25: 4.4 | D25: -0.4 | E25: 0.7 | H25: 1022.2 | I25: 0.6 | J25: NWa | K25: H Hugo | L25: Gegen 11:50 Uhr; 13:45 Uhr; 16:30 Uhr leichter Graupelschauer (WW 87). Gegen 14:15 Uhr Schneeflocken (WW 70). Von 00:00 Uhr - 07:09 Uhr; 08:20 Uhr - 08:39 Uhr mäßiger Regen (WW 63). Von 08:40 Uhr - 09:19 Uhr leichter Regen (WW 61). Von 09:20 Uhr - Gegen 11:50 Uhr Regentropfen (WW 60).
A26: 2018-12-25 | B26: 2.9 | C26: 3.9 | D26: 1.1 | E26: 0.1 | H26: 1030.4 | I26: 0.6 | J26: (Ω-Hoch; HW (Hoch West-europa) | L26: Zwischen 03:00 Uhr - 04:59 Uhr leichter/mäßiger Schneeregen (WW 68/69).
A27: 2018-12-26 | B27: 3.8 | C27: 4.8 | D27: 2.7 | H27: 1028.8 | I27: 0.55 | L27: Am Nachmittag und Abend leichter Sprühregen (WW 51).
A28: 2018-12-27 | B28: 5.6 | C28: 7.9 | D28: 4.1 | G28: 1.2 | H28: 1026.2 | I28: 0.5 | L28: In der Nacht leichter Sprühregen (WW 51).
A29: 2018-12-28 | B29: 4.4 | C29: 5.7 | D29: 3.5 | E29: 0.6 | H29: 1025.9 | I29: 0.45 | K29: H Ignatius | L29: Zwischen 13:00 Uhr - Uhr leichter Sprühregen (WW 51).
A30: 2018-12-29 | B30: 4.5 | C30: 5.7 | D30: 3.6 | E30: 4.3 | H30: 1027.5 | I30: 0.4 | L30: Ganztags leichter Sprühregen, unterbrochen (WW 50/51).
A31: 2018-12-30 | B31: 5.4 | C31: 6.2 | D31: 4.6 | E31: 1.1 | H31: 1023.7 | I31: 0.4 | L31: Von 04:30 Uhr - 04:49 Uhr starker Regen (WW 65). Von 00:50 Uhr - 01:09 Uhr; 03:40 Uhr - 04:09 Uhr; 04:50 Uhr - 05:49 Uhr mäßiger Regen (WW 63). Von 05:50 Uhr - 08:59 Uhr mäßiger Regen, unterbrochen (WW 62). Von 01:10 Uhr - 03:39 Uhr; 04:10 Uhr - 04:29 Uhr; 09:20 Uhr - Uhr leichter Regen (WW 61). Von 09:00 Uhr - 09:19 Uhr leichter Regen mit Sprühregen (WW 58). Von 00:00 Uhr - 00:49 Ihr leichter Sprühregen (WW 51).
A32: 2018-12-31 | B32: 5.4 | C32: 6.6 | D32: 4.1 | E32: 0.5 | H32: 1030.5 | I32: 0.4
A33: Durchschnitt | B33: =AVERAGE(B2:B32) -> 3.519354839 | C33: =AVERAGE(C2:C32) -> 5.603225806 | D33: =AVERAGE(D2:D32) -> 1.703225806 | E33: - | G33: =AVERAGE(G2:G32) -> 0.7214285714 | H33: =AVERAGE(H2:H32) -> 1018.7 | I33: =AVERAGE(I2:I32) -> 1.109677419
A34: Mittel | B34: 1.1 | E34: 53 | F34: - | G34: 55 | H34: 1017.3
A90: 1
A91: 2
A92: 3
A93: 4
A94: 5
A95: 6
A96: 7
A97: 8
A98: 9
A99: 10
A100: 11
A101: 12
A102: 13
A103: 14
A104: 15
A105: 16
A106: 17
A107: 18
A108: 19
A109: 20
A110: 21
A111: 22
A112: 23
A113: 24
A114: 25
A115: 26
A116: 27
A117: 28
A118: 29
A119: 30
A120: 31

Sheet Erdboden
F1: Erdbodenstatistik
B3: Wetterstation: | C3: Köttewitz | E3: Monat: | F3: Dezember | J3: Jahr: | K3: 2018
A5: Dat. | B5: Temperatur | C5: Temperatur | D5: Temperatur | E5: Temperatur | F5: NN | G5: 0 °C - Grenze | H5: 5 °C - Grenze | I5: 10 °C - Grenze | J5: 15 °C - Grenze | K5: 20 °C - Grenze
B6: 5 cm | C6: -10 cm | D6: - 20 cm | E6: - 35 cm
A7: 01. | B7: -0,6 °C/1,7 °C/-2,2 °C | C7: 0,0 °C/0,6 °C/0,0 °C | D7: 0,6 °C/1,1 °C/1,1 °C | E7: 2,2 °C/2,2 °C/2,2 °C | F7: n | G7: < 8 > 50 cm
A8: 02. | B8: 2,8 °C/2,8 °C/3,9 °C | C8: 0,6 °C/1,1 °C/1,7 °C | D8: 1,1 °C/1,1 °C/1,7 °C | E8: 2,2 °C/2,2 °C/2,2 °C | F8: t | G8: > 50 cm
A9: 03. | B9: 3,9 °C/12,2 °C/7,2 °C | C9: 2,2 °C/4,4 °C/5,0 °C | D9: 2,2 °C/3,3 °C/4,4 °C | E9: 2,8 °C/2,8 °C/3,9 °C | F9: t | G9: > 50 cm | H9: < 4 > 50 cm
A10: 04. | B10: 7,2 °C/5,6 °C/2,2 °C | C10: 5,6 °C/5,6 °C/3,3 °C | D10: 5,0 °C/5,0 °C/3,9 °C | E10: 4,4 °C/4,4 °C/4,4 °C | F10: n | G10: > 50 cm
A11: 05. | B11: -1,7 °C/3,3 °C/-0,6 °C | C11: 1,7 °C/2,2 °C/1,7 °C | D11: 2,8 °C/2,8 °C/2,2 °C | E11: 4,4 °C/3,9 °C/3,9 °C | F11: n | G11: > 50 cm
A12: 06. | B12: 2,2 °C/4,4 °C/3,3 °C | C12: 1,7 °C/2,2 °C/2,8 °C | D12: 2,2 °C/2,2 °C/2,8 °C | E12: 3,3 °C/3,3 °C/3,3 °C | F12: t | G12: > 50 cm
A13: 07. | B13: 6,1 °C/8,3 °C/7,2 °C | C13: 3,9 °C/5,6 °C/6,1 °C | D13: 3,3 °C/4,4 °C/5,6 °C | E13: 3,9 °C/3,9 °C/4,4 °C | F13: t | G13: > 50 cm | H13: < 16 > 50 cm
A14: 08. | B14: 3,3 °C/7,2 °C/6,1 °C | C14: 5,0 °C/5,0 °C/4,4 °C | D14: 5,0 °C/5,0 °C/5,0 °C | E14: 5,0 °C/5,0 °C/5,0 °C | F14: n | G14: > 50 cm | H14: > 50 cm
A15: 09. | B15: 5,6 °C/7,8 °C/4,4 °C | C15: 5,0 °C/5,6 °C/5,0 °C | D15: 5,0 °C/5,6 °C/5,0 °C | E15: 5,0 °C/5,0 °C/5,6 °C | F15: t | G15: > 50 cm | H15: > 50 cm
A16: 10. | B16: 2,2 °C/3,9 °C/3,9 °C | C16: 3,9 °C/4,4 °C/4,4 °C | D16: 4,4 °C/4,4 °C/4,4 °C | E16: 5,0 °C/5,0 °C/5,0 °C | F16: t | G16: > 50 cm | H16: < 35 > 50 cm
A17: 11. | B17: 2,2 °C/2,2 °C/2,2 °C | C17: 3,3 °C/3,3 °C/3,3 °C | D17: 3,9 °C/3,9 °C/3,9 °C | E17: 5,0 °C/4,4 °C/4,4 °C | F17: t | G17: > 50 cm
A18: 12. | B18: 1,7 °C/2,2 °C/0,0 °C | C18: 3,3 °C/3,3 °C/2,2 °C | D18: 3,3 °C/3,3 °C/3,3 °C | E18: 4,4 °C/4,4 °C/4,4 °C | F18: t | G18: > 50 cm
A19: 13. | B19: -2,2 °C/0,0 °C/-0,6 °C | C19: 1,7 °C/2,2 °C/1,7 °C | D19: 2,8 °C/2,8 °C/2,2 °C | E19: 4,4 °C/3,9 °C/3,9 °C | F19: t | G19: > 50 cm
A20: 14. | B20: -1,1 °C/1,1 °C/-0,6 °C | C20: 1,7 °C/2,2 °C/1,7 °C | D20: 2,2 °C/2,2 °C/2,2 °C | E20: 3,9 °C/3,3 °C/3,3 °C | F20: t | G20: > 50 cm
A21: 15. | B21: -1,7 °C/-0,6 °C/-1,1 °C | C21: 1,7 °C/1,7 °C/1,7 °C | D21: 2,2 °C/2,2 °C/2,2 °C | E21: 3,3 °C/3,3 °C/3,3 °C | F21: t | G21: < 1 > 50 cm
A22: 16. | B22: -2,2 °C/-2,2 °C/-2,2 °C | C22: 1,1 °C/1,1 °C/1,1 °C | D22: 1,7 °C/1,7 °C/1,7 °C | E22: 3,3 °C/3,3 °C/3,3 °C | F22: t | G22: < 5 > 50 cm
A23: 17. | B23: 0,6 °C/3,3 °C/1,1 °C | C23: 1,1 °C/1,7 °C/1,7 °C | D23: 1,7 °C/2,2 °C/1,7 °C | E23: 2,8 °C/2,8 °C/2,8 °C | F23: t | G23: > 50 cm
A24: 18. | B24: 2,8 °C/4,4 °C/1,1 °C | C24: 2,2 °C/3,3 °C/2,2 °C | D24: 2,2 °C/3,3 °C/2,2 °C | E24: 2,8 °C/3,3 °C/3,3 °C | F24: n | G24: > 50 cm
A25: 19. | B25: 0,6 °C/1,7 °C/0,6 °C | C25: 1,7 °C/1,7 °C/1,7 °C | D25: 2,2 °C/2,2 °C/2,2 °C | E25: 3,3 °C/3,3 °C/3,3 °C | F25: n | G25: > 50 cm
A26: 20. | B26: 0,0 °C/3,3 °C/2,8 °C | C26: 1,7 °C/2,8 °C/2,8 °C | D26: 2,2 °C/2,2 °C/2,8 °C | E26: 3,3 °C/3,3 °C/3,3 °C | F26: t | G26: > 50 cm
A27: 21. | B27: 2,8 °C/4,4 °C/8,9 °C | C27: 2,8 °C/3,9 °C/5,0 °C | D27: 2,8 °C/3,3 °C/3,9 °C | E27: 3,3 °C/3,3 °C/3,9 °C | F27: t | G27: > 50 cm | H27: 5 cm
A28: 22. | B28: 6,1 °C/5,6 °C/5,0 °C | C28: 5,0 °C/6,1 °C/5,0 °C | D28: 5,0 °C/5,6 °C/5,0 °C | E28: 4,4 °C/4,4 °C/5,0 °C | F28: t | G28: > 50 cm | H28: 25 cm
A29: 23. | B29: 5,6 °C/7,8 °C/4,4 °C | C29: 5,0 °C/5,6 °C/5,0 °C | D29: 5,0 °C/5,6 °C/5,0 °C | E29: 5,0 °C/5,0 °C/5,0 °C | F29: t | G29: > 50 cm | H29: 50 cm
A30: 24. | B30: 2,2 °C/0,6 °C/0,0 °C | C30: 4,4 °C/3,9 °C/2,8 °C | D30: 5,0 °C/4,4 °C/3,3 °C | E30: 5,0 °C/5,0 °C/5,0 °C | F30: t | G30: > 50 cm | H30: < 35; 50 > cm
A31: 25. | B31: 2,2 °C/3,9 °C/3,3 °C | C31: 2,8 °C/3,3 °C/3,3 °C | D31: 3,3 °C/3,3 °C/3,9 °C | E31: 4,4 °C/4,4 °C/4,4 °C | F31: t | G31: > 50 cm
A32: 26. | B32: 3,3 °C/3,9 °C/3,9 °C | C32: 3,3 °C/3,9 °C/3,9 °C | D32: 3,9 °C/3,9 °C/3,9 °C | E32: 4,4 °C/4,4 °C/4,4 °C | F32: t | G32: > 50 cm
A33: 27. | B33: 4,4 °C/5,6 °C/3,9 °C | C33: 4,4 °C/5,6 °C/4,4 °C | D33: 4,4 °C/5,0 °C/4,4 °C | E33: 4,4 °C/5,0 °C/5,0 °C | F33: t | G33: > 50 cm
A34: 28. | B34: 2,8 °C/4,4 °C/3,9 °C | C34: 3,9 °C/4,4 °C/4,4 °C | D34: 4,4 °C/4,4 °C/4,4 °C | E34: 5,0 °C/5,0 °C/5,0 °C | F34: t | G34: > 50 cm | H34: < 35; 50 > cm
A35: 29. | B35: 3,3 °C/4,4 °C/3,9 °C | C35: 3,9 °C/5,0 °C/4,4 °C | D35: 4,4 °C/4,4 °C/5,0 °C | E35: 5,0 °C/5,0 °C/5,0 °C | F35: t | G35: > 50 cm | H35: < 35 > 50 cm
A36: 30. | B36: 5,0 °C/5,6 °C/5,0 °C | C36: 4,4 °C/5,0 °C/5,0 °C | D36: 4,4 °C/5,0 °C/5,0 °C | E36: 5,0 °C/5,0 °C/5,0 °C | F36: t | G36: > 50 cm | H36: < 35 > 50 cm
A37: 31. | B37: 3,9 °C/7,2 °C/6,1 °C | C37: 4,4 °C/5,6 °C/5,6 °C | D37: 4,4 °C/5,0 °C/5,6 °C | E37: 5,0 °C/5,0 °C/5,0 °C | F37: t | G37: > 50 cm | H37: > 50 cm
B39: Werte von 7 Uhr/14 Uhr/21 Uhr MEZ
B41: Mit Gelb markiert ist der Temperaturbereich des Erdbodens.
B43: Anzeige Zentibar (cb) | C43: Bodenbedingungen
B44: 0-20 | C44: Alle Böden sind ausreichend nass. Keine Bewässerung nötig.
B45: 20-40 | C45: Leichte Böden trocknen aus und brauchen Bewässerung, mittelschwere Böden sind gerade noch ausreichend feucht.
B46: 40-60 | C46: Leichte und mittelschwere Böden brauchen bei Pflanzen mit Hauptwurzeln in Sensortiefe Bewässerung. Schwere Böden sind gerade noch ausreichend feucht.
B47: 60-100 | C47: Alle Bodensorten brauchen bei Pflanzen mit Hauptwurzeln in Sensortiefe Bewässerung. Büsche zeigen auf leichten und steinigen Böden Trockenstress.
B48: 100-200 | C48: Trockener Boden. Ohne Bewässerung gibt es bei mitteltief wurzelnden Pflanzen (bis Buschgröße) bereits Trockenschäden auf allen Bodensorten.
